[Event "Late-Titled-Tuesday-Blitz-January-30-2024"]
[Site "Chess.com"]
[Date "2024.01.30"]
[Round "10"]
[White "Arteler"]
[Black "KaydenTroffChess"]
[Result "0-1"]
[WhiteElo "2567"]
[BlackElo "2848"]
[TimeControl "180+1"]
[EndTime "15:56:26 PST"]
[Termination "KaydenTroffChess won on time"]

1. e4 {[%clk 0:02:56.9]} 1... c5 {[%clk 0:03:00]} 2. Nf3 {[%clk 0:02:57.3]} 2...
g6 {[%clk 0:03:00.5]} 3. c3 {[%clk 0:02:57]} 3... Bg7 {[%clk 0:03:00.6]} 4. d4
{[%clk 0:02:57]} 4... cxd4 {[%clk 0:03:01.5]} 5. cxd4 {[%clk 0:02:57.2]} 5... d5
{[%clk 0:03:02.1]} 6. exd5 {[%clk 0:02:57.5]} 6... Nf6 {[%clk 0:03:02.4]} 7. Nc3
{[%clk 0:02:56.8]} 7... O-O {[%clk 0:03:02.2]} 8. Bc4 {[%clk 0:02:50.5]} 8...
Nbd7 {[%clk 0:03:02.5]} 9. d6 {[%clk 0:02:47.1]} 9... exd6 {[%clk 0:02:50.7]}
10. O-O {[%clk 0:02:46.9]} 10... Nb6 {[%clk 0:02:51.1]} 11. Bb3 {[%clk
0:02:43.9]} 11... Bf5 {[%clk 0:02:47.5]} 12. Re1 {[%clk 0:02:41.8]} 12... Rc8
{[%clk 0:02:44.9]} 13. Bf4 {[%clk 0:02:39.4]} 13... a6 {[%clk 0:02:37.3]} 14. h3
{[%clk 0:02:37.2]} 14... Nc4 {[%clk 0:02:30]} 15. Bxc4 {[%clk 0:02:33.9]} 15...
Rxc4 {[%clk 0:02:29.5]} 16. Qb3 {[%clk 0:02:34.6]} 16... b5 {[%clk 0:02:28.7]}
17. a4 {[%clk 0:02:34.6]} 17... Nh5 {[%clk 0:02:05.5]} 18. Bg5 {[%clk
0:02:32.5]} 18... Bf6 {[%clk 0:02:04.9]} 19. Bxf6 {[%clk 0:02:27]} 19... Qxf6
{[%clk 0:02:05.8]} 20. axb5 {[%clk 0:02:27.6]} 20... axb5 {[%clk 0:02:05.5]} 21.
Qxb5 {[%clk 0:02:26.9]} 21... Bd3 {[%clk 0:01:48.3]} 22. Nd5 {[%clk 0:02:25]}
22... Qg7 {[%clk 0:01:41.8]} 23. Qb3 {[%clk 0:02:25]} 23... Rxd4 {[%clk
0:01:30]} 24. Nxd4 {[%clk 0:02:24.5]} 24... Qxd4 {[%clk 0:01:30.9]} 25. Ne7+
{[%clk 0:02:23.8]} 25... Kg7 {[%clk 0:01:27.9]} 26. Nc6 {[%clk 0:02:13.3]} 26...
Qc4 {[%clk 0:01:20.8]} 27. Qxc4 {[%clk 0:02:02.4]} 27... Bxc4 {[%clk 0:01:21.7]}
28. Rac1 {[%clk 0:01:51.8]} 28... Bd5 {[%clk 0:01:16.3]} 29. Red1 {[%clk
0:01:50.5]} 29... Nf4 {[%clk 0:01:16.1]} 30. Rd2 {[%clk 0:01:20]} 30... Bxg2
{[%clk 0:01:06.1]} 31. Rc4 {[%clk 0:01:19.6]} 31... Bxc6 {[%clk 0:01:02.1]} 32.
Rxf4 {[%clk 0:01:19]} 32... d5 {[%clk 0:00:50.4]} 33. Rc2 {[%clk 0:01:18.2]}
33... Bd7 {[%clk 0:00:50.2]} 34. Rc7 {[%clk 0:01:18.2]} 34... Bxh3 {[%clk
0:00:49.7]} 35. b4 {[%clk 0:01:14.4]} 35... g5 {[%clk 0:00:48.6]} 36. Rf3 {[%clk
0:01:06.9]} 36... Bg4 {[%clk 0:00:32.6]} 37. Rg3 {[%clk 0:01:06.7]} 37... Be6
{[%clk 0:00:32.6]} 38. Rxg5+ {[%clk 0:00:59]} 38... Kf6 {[%clk 0:00:32.8]} 39.
Rh5 {[%clk 0:00:59.3]} 39... Rb8 {[%clk 0:00:32.5]} 40. Rh4 {[%clk 0:00:58.5]}
40... Kg5 {[%clk 0:00:30]} 41. Rd4 {[%clk 0:00:53.5]} 41... Kf5 {[%clk
0:00:29.6]} 42. Rc3 {[%clk 0:00:39.7]} 42... Ke5 {[%clk 0:00:29]} 43. Rh4 {[%clk
0:00:40.3]} 43... Ra8 {[%clk 0:00:26.3]} 44. Re3+ {[%clk 0:00:37.1]} 44... Kd6
{[%clk 0:00:25.4]} 45. Rxh7 {[%clk 0:00:36.3]} 45... Rg8+ {[%clk 0:00:24]} 46.
Kf1 {[%clk 0:00:35.8]} 46... Rg4 {[%clk 0:00:24]} 47. Rb3 {[%clk 0:00:31.5]}
47... d4 {[%clk 0:00:23.9]} 48. Rb2 {[%clk 0:00:31.6]} 48... Bc4+ {[%clk
0:00:20]} 49. Ke1 {[%clk 0:00:31.9]} 49... Rg1+ {[%clk 0:00:19.6]} 50. Kd2
{[%clk 0:00:32.4]} 50... Rg2 {[%clk 0:00:20.1]} 51. Kc1 {[%clk 0:00:28.3]} 51...
Rg1+ {[%clk 0:00:19.5]} 52. Kc2 {[%clk 0:00:28.8]} 52... Rg2 {[%clk 0:00:20.2]}
53. Rh6+ {[%clk 0:00:14.5]} 53... Ke5 {[%clk 0:00:19.8]} 54. Rh5+ {[%clk
0:00:13.6]} 54... f5 {[%clk 0:00:18.7]} 55. Kc1 {[%clk 0:00:11.8]} 55... Rg1+
{[%clk 0:00:18.2]} 56. Kd2 {[%clk 0:00:12.3]} 56... Rg2 {[%clk 0:00:17.6]} 57.
Ke1 {[%clk 0:00:12.6]} 57... Rg1+ {[%clk 0:00:17.2]} 58. Kd2 {[%clk 0:00:12.8]}
58... Rg2 {[%clk 0:00:17.5]} 59. Rc2 {[%clk 0:00:12.4]} 59... Rxf2+ {[%clk
0:00:15.9]} 60. Kc1 {[%clk 0:00:12.7]} 60... Rf1+ {[%clk 0:00:16.1]} 61. Kb2
{[%clk 0:00:13]} 61... Bd3 {[%clk 0:00:16.8]} 62. Rc5+ {[%clk 0:00:12.5]} 62...
Ke4 {[%clk 0:00:15]} 63. Rh4+ {[%clk 0:00:05.4]} 63... f4 {[%clk 0:00:15.1]} 64.
Rhh5 {[%clk 0:00:05.4]} 64... Rb1+ {[%clk 0:00:15.1]} 65. Ka3 {[%clk 0:00:06.3]}
65... f3 {[%clk 0:00:14.4]} 66. Rhf5 {[%clk 0:00:05]} 66... Ke3 {[%clk
0:00:14.9]} 67. Rce5+ {[%clk 0:00:05.3]} 67... Be4 {[%clk 0:00:15.4]} 68. Rf8
{[%clk 0:00:05.2]} 68... f2 {[%clk 0:00:15]} 69. Rxf2 {[%clk 0:00:04.4]} 69...
Kxf2 {[%clk 0:00:15.3]} 70. Rxe4 {[%clk 0:00:05.1]} 70... d3 {[%clk 0:00:16]}
71. Rd4 {[%clk 0:00:04.8]} 71... Ke3 {[%clk 0:00:16.5]} 72. Rd8 {[%clk
0:00:05.3]} 72... d2 {[%clk 0:00:17.1]} 73. Ka4 {[%clk 0:00:04.1]} 73... Ra1+
{[%clk 0:00:17.4]} 74. Kb5 {[%clk 0:00:04.3]} 74... d1=Q {[%clk 0:00:17.8]} 75.
Rxd1 {[%clk 0:00:04.8]} 75... Rxd1 {[%clk 0:00:18.7]} 76. Kc5 {[%clk 0:00:04.9]}
76... Rc1+ {[%clk 0:00:19.2]} 77. Kd5 {[%clk 0:00:04.7]} 77... Rb1 {[%clk
0:00:19.3]} 78. Kc5 {[%clk 0:00:04.3]} 78... Ke4 {[%clk 0:00:19.8]} 79. b5
{[%clk 0:00:04.6]} 79... Ke5 {[%clk 0:00:20.6]} 80. Kc6 {[%clk 0:00:05]} 80...
Ke6 {[%clk 0:00:21.3]} 81. b6 {[%clk 0:00:04.8]} 81... Rc1+ {[%clk 0:00:21.8]}
82. Kb7 {[%clk 0:00:02.7]} 82... Kd7 {[%clk 0:00:22.7]} 83. Ka7 {[%clk
0:00:03.1]} 83... Ra1+ {[%clk 0:00:22.5]} 0-1

[Event "Late-Titled-Tuesday-Blitz-January-30-2024"]
[Site "Chess.com"]
[Date "2024.01.30"]
[Round "10"]
[White "platy3"]
[Black "MrTattaglia"]
[Result "1-0"]
[WhiteElo "2890"]
[BlackElo "2956"]
[TimeControl "180+1"]
[EndTime "15:56:57 PST"]
[Termination "platy3 won by checkmate"]

1. e4 {[%clk 0:03:00.9]} 1... e5 {[%clk 0:02:58.6]} 2. Nf3 {[%clk 0:03:01.4]}
2... Nc6 {[%clk 0:02:59.1]} 3. Bb5 {[%clk 0:03:01.3]} 3... Nf6 {[%clk
0:02:58.4]} 4. d3 {[%clk 0:02:59.9]} 4... Bc5 {[%clk 0:02:58.7]} 5. O-O {[%clk
0:02:58.7]} 5... Nd4 {[%clk 0:02:57]} 6. Nxd4 {[%clk 0:02:59]} 6... Bxd4 {[%clk
0:02:57.9]} 7. Nd2 {[%clk 0:02:58.5]} 7... c6 {[%clk 0:02:57.4]} 8. Ba4 {[%clk
0:02:58.9]} 8... d6 {[%clk 0:02:57.4]} 9. c3 {[%clk 0:02:56.2]} 9... Bb6 {[%clk
0:02:57.2]} 10. Nc4 {[%clk 0:02:56.8]} 10... Bc7 {[%clk 0:02:57.5]} 11. Bc2
{[%clk 0:02:57.4]} 11... Be6 {[%clk 0:02:57.4]} 12. f4 {[%clk 0:02:57.5]} 12...
h6 {[%clk 0:02:50.9]} 13. fxe5 {[%clk 0:02:54.2]} 13... dxe5 {[%clk 0:02:50.9]}
14. Qf3 {[%clk 0:02:45.9]} 14... Qe7 {[%clk 0:02:42]} 15. Be3 {[%clk 0:02:38.7]}
15... Bxc4 {[%clk 0:02:37.7]} 16. dxc4 {[%clk 0:02:38.4]} 16... Bb6 {[%clk
0:02:38.3]} 17. b4 {[%clk 0:02:14.8]} 17... Bxe3+ {[%clk 0:02:24.2]} 18. Qxe3
{[%clk 0:02:15.7]} 18... b6 {[%clk 0:02:13]} 19. Rad1 {[%clk 0:01:54.4]} 19...
O-O {[%clk 0:02:11.2]} 20. h3 {[%clk 0:01:54.7]} 20... c5 {[%clk 0:02:10.3]} 21.
a3 {[%clk 0:01:52.1]} 21... Rad8 {[%clk 0:02:09.5]} 22. Kh2 {[%clk 0:01:48.3]}
22... Rd6 {[%clk 0:02:05.1]} 23. Rxd6 {[%clk 0:01:41.8]} 23... Qxd6 {[%clk
0:02:04.4]} 24. Rd1 {[%clk 0:01:42.4]} 24... Qe7 {[%clk 0:02:04.2]} 25. Qd2
{[%clk 0:01:38.4]} 25... Qe6 {[%clk 0:01:58.6]} 26. Qe2 {[%clk 0:01:32.6]} 26...
Rc8 {[%clk 0:01:55.6]} 27. Bd3 {[%clk 0:01:31.7]} 27... Kf8 {[%clk 0:01:55.3]}
28. b5 {[%clk 0:01:19.4]} 28... Rd8 {[%clk 0:01:51.7]} 29. Bc2 {[%clk
0:01:17.7]} 29... Rxd1 {[%clk 0:01:49.7]} 30. Bxd1 {[%clk 0:01:18.6]} 30... Ke7
{[%clk 0:01:46.2]} 31. a4 {[%clk 0:01:18.4]} 31... Ne8 {[%clk 0:01:36.7]} 32.
Bc2 {[%clk 0:01:17.7]} 32... Nd6 {[%clk 0:01:35.7]} 33. Bd3 {[%clk 0:01:18.2]}
33... Qf6 {[%clk 0:01:36]} 34. g3 {[%clk 0:01:12]} 34... Kd7 {[%clk 0:01:35.1]}
35. a5 {[%clk 0:01:06.6]} 35... bxa5 {[%clk 0:01:34.2]} 36. Kg2 {[%clk
0:01:06.6]} 36... Kc7 {[%clk 0:01:33.4]} 37. Qg4 {[%clk 0:01:03.2]} 37... g6
{[%clk 0:01:29.1]} 38. Qe2 {[%clk 0:00:57.9]} 38... Qe6 {[%clk 0:01:22.4]} 39.
Qe3 {[%clk 0:00:56.4]} 39... Kb6 {[%clk 0:01:21.9]} 40. Qxh6 {[%clk 0:00:56.5]}
40... Nxc4 {[%clk 0:00:41]} 41. Qf8 {[%clk 0:00:56.4]} 41... Qd6 {[%clk
0:00:40.6]} 42. Qc8 {[%clk 0:00:56.6]} 42... Ne3+ {[%clk 0:00:12.1]} 43. Kf3
{[%clk 0:00:54.2]} 43... c4 {[%clk 0:00:12.6]} 44. Qa6+ {[%clk 0:00:48.4]} 44...
Kc5 {[%clk 0:00:12.7]} 45. Qxa7+ {[%clk 0:00:32.6]} 45... Kxb5 {[%clk
0:00:12.7]} 46. Be2 {[%clk 0:00:27.4]} 46... Nc2 {[%clk 0:00:10.3]} 47. Qb7+
{[%clk 0:00:27.4]} 47... Ka4 {[%clk 0:00:10.5]} 48. Qb2 {[%clk 0:00:17.5]} 48...
Na3 {[%clk 0:00:09.1]} 49. Kg4 {[%clk 0:00:13.1]} 49... f6 {[%clk 0:00:07.7]}
50. h4 {[%clk 0:00:11.8]} 50... Qd7+ {[%clk 0:00:08.1]} 51. Kf3 {[%clk
0:00:11.6]} 51... f5 {[%clk 0:00:08.6]} 52. exf5 {[%clk 0:00:09.3]} 52... gxf5
{[%clk 0:00:09.5]} 53. h5 {[%clk 0:00:08.6]} 53... Qd5+ {[%clk 0:00:05]} 54. Kf2
{[%clk 0:00:08.8]} 54... f4 {[%clk 0:00:02.7]} 55. h6 {[%clk 0:00:07.1]} 55...
fxg3+ {[%clk 0:00:02.4]} 56. Kxg3 {[%clk 0:00:08]} 56... e4 {[%clk 0:00:02.8]}
57. h7 {[%clk 0:00:07.5]} 57... Qg5+ {[%clk 0:00:02.8]} 58. Kf2 {[%clk
0:00:08.1]} 58... Qf4+ {[%clk 0:00:03.2]} 59. Kg2 {[%clk 0:00:08.7]} 59... Qg5+
{[%clk 0:00:03.2]} 60. Kf1 {[%clk 0:00:09.4]} 60... Qf4+ {[%clk 0:00:03.5]} 61.
Ke1 {[%clk 0:00:05.9]} 61... Qg3+ {[%clk 0:00:03.4]} 62. Kf1 {[%clk 0:00:03.1]}
62... Qf4+ {[%clk 0:00:03.4]} 63. Kg1 {[%clk 0:00:03.5]} 63... Qg5+ {[%clk
0:00:03.3]} 64. Kf2 {[%clk 0:00:03.5]} 64... Qf4+ {[%clk 0:00:03]} 65. Kg2
{[%clk 0:00:04]} 65... Qg5+ {[%clk 0:00:03.2]} 66. Kh3 {[%clk 0:00:04.4]} 66...
Qh6+ {[%clk 0:00:03.4]} 67. Kg4 {[%clk 0:00:04.9]} 67... Qg6+ {[%clk 0:00:02.4]}
68. Kf4 {[%clk 0:00:05.3]} 68... Qf6+ {[%clk 0:00:02]} 69. Kxe4 {[%clk
0:00:05.8]} 69... Qe6+ {[%clk 0:00:02.6]} 70. Kf3 {[%clk 0:00:03.6]} 70... Qf5+
{[%clk 0:00:02.5]} 71. Kg3 {[%clk 0:00:04]} 71... Qe5+ {[%clk 0:00:02.1]} 72.
Kg2 {[%clk 0:00:04.1]} 72... Qg5+ {[%clk 0:00:01.9]} 73. Kf2 {[%clk 0:00:01.9]}
73... Qf4+ {[%clk 0:00:02.4]} 74. Kg2 {[%clk 0:00:02.4]} 74... Qg5+ {[%clk
0:00:02.7]} 75. Kf2 {[%clk 0:00:03.1]} 75... Qh4+ {[%clk 0:00:03.1]} 76. Ke3
{[%clk 0:00:03.5]} 76... Qg3+ {[%clk 0:00:03.2]} 77. Bf3 {[%clk 0:00:03.7]}
77... Qe5+ {[%clk 0:00:03]} 78. Kf2 {[%clk 0:00:04.3]} 78... Qh2+ {[%clk
0:00:02.4]} 79. Bg2 {[%clk 0:00:05]} 79... Qh6 {[%clk 0:00:02]} 80. Bc6+ {[%clk
0:00:03.9]} 80... Qxc6 {[%clk 0:00:01.8]} 81. h8=Q {[%clk 0:00:04.5]} 81... Qc5+
{[%clk 0:00:01.7]} 82. Kg2 {[%clk 0:00:05.1]} 82... Qd5+ {[%clk 0:00:01.7]} 83.
Kh2 {[%clk 0:00:05.7]} 83... Nb5 {[%clk 0:00:02]} 84. Qh3 {[%clk 0:00:05.3]}
84... Qd6+ {[%clk 0:00:01.9]} 85. Qg3 {[%clk 0:00:05.8]} 85... Qh6+ {[%clk
0:00:02.5]} 86. Kg2 {[%clk 0:00:06.3]} 86... Qc6+ {[%clk 0:00:02.9]} 87. Qf3
{[%clk 0:00:06.4]} 87... Qg6+ {[%clk 0:00:02.7]} 88. Kf2 {[%clk 0:00:07]} 88...
Qb6+ {[%clk 0:00:03.2]} 89. Kf1 {[%clk 0:00:06.9]} 89... Qc5 {[%clk 0:00:02.6]}
90. Qd1# {[%clk 0:00:07.2]} 1-0

[Event "Late-Titled-Tuesday-Blitz-January-30-2024"]
[Site "Chess.com"]
[Date "2024.01.30"]
[Round "10"]
[White "h4parah5"]
[Black "BogdanDeac"]
[Result "1/2-1/2"]
[WhiteElo "2921"]
[BlackElo "3049"]
[TimeControl "180+1"]
[EndTime "15:57:21 PST"]
[Termination "Game drawn by stalemate"]

1. Nf3 {[%clk 0:03:00.9]} 1... d5 {[%clk 0:02:59.6]} 2. e3 {[%clk 0:03:00.7]}
2... Nf6 {[%clk 0:02:59.1]} 3. c4 {[%clk 0:03:01.1]} 3... dxc4 {[%clk
0:02:59.4]} 4. Bxc4 {[%clk 0:03:00.7]} 4... e6 {[%clk 0:03:00.3]} 5. d4 {[%clk
0:03:00.5]} 5... a6 {[%clk 0:03:00.3]} 6. O-O {[%clk 0:03:00.6]} 6... c5 {[%clk
0:02:59.7]} 7. dxc5 {[%clk 0:02:54.9]} 7... Bxc5 {[%clk 0:02:58]} 8. Qxd8+
{[%clk 0:02:48.8]} 8... Kxd8 {[%clk 0:02:58.9]} 9. Be2 {[%clk 0:02:48.5]} 9...
Ke7 {[%clk 0:02:57.5]} 10. Nbd2 {[%clk 0:02:42.2]} 10... Bd7 {[%clk 0:02:46.4]}
11. Nb3 {[%clk 0:02:41]} 11... Bd6 {[%clk 0:02:43.2]} 12. Na5 {[%clk 0:02:31.1]}
12... Ra7 {[%clk 0:02:38.2]} 13. Bd2 {[%clk 0:02:27.7]} 13... Ne4 {[%clk
0:02:29.9]} 14. Be1 {[%clk 0:02:23.5]} 14... Bb5 {[%clk 0:02:21.8]} 15. Bxb5
{[%clk 0:02:17.5]} 15... axb5 {[%clk 0:02:22.7]} 16. Nd4 {[%clk 0:02:17.3]}
16... b4 {[%clk 0:02:13.3]} 17. Nc4 {[%clk 0:02:16]} 17... Bc5 {[%clk
0:02:13.3]} 18. Nb3 {[%clk 0:02:13.7]} 18... b6 {[%clk 0:02:13.1]} 19. Kh1
{[%clk 0:01:35.3]} 19... Nd7 {[%clk 0:01:56.2]} 20. Nxc5 {[%clk 0:01:18.2]}
20... bxc5 {[%clk 0:01:55.4]} 21. a3 {[%clk 0:01:15.8]} 21... bxa3 {[%clk
0:01:50.5]} 22. bxa3 {[%clk 0:01:16.7]} 22... Rha8 {[%clk 0:01:45.6]} 23. Rd1
{[%clk 0:01:01.8]} 23... Ra4 {[%clk 0:01:41.2]} 24. Rc1 {[%clk 0:00:56.9]} 24...
f6 {[%clk 0:01:32.1]} 25. f3 {[%clk 0:00:52.7]} 25... Nd6 {[%clk 0:01:27]} 26.
Nxd6 {[%clk 0:00:52.9]} 26... Kxd6 {[%clk 0:01:27.7]} 27. Bg3+ {[%clk
0:00:53.1]} 27... e5 {[%clk 0:01:19.8]} 28. Rfd1+ {[%clk 0:00:53]} 28... Ke6
{[%clk 0:00:55.8]} 29. e4 {[%clk 0:00:48.5]} 29... Rxa3 {[%clk 0:00:51.1]} 30.
Bf2 {[%clk 0:00:49]} 30... Rc8 {[%clk 0:00:41.6]} 31. Rd5 {[%clk 0:00:36.9]}
31... c4 {[%clk 0:00:25]} 32. Rcd1 {[%clk 0:00:33.5]} 32... Rc7 {[%clk
0:00:17.6]} 33. Rd6+ {[%clk 0:00:29.6]} 33... Ke7 {[%clk 0:00:17.6]} 34. h4
{[%clk 0:00:29.9]} 34... Ra2 {[%clk 0:00:16.3]} 35. Be3 {[%clk 0:00:24.4]} 35...
c3 {[%clk 0:00:14.8]} 36. R6d3 {[%clk 0:00:23.9]} 36... Rc2 {[%clk 0:00:12.1]}
37. Ra1 {[%clk 0:00:17]} 37... Rb2 {[%clk 0:00:07.9]} 38. Rc1 {[%clk 0:00:16.5]}
38... c2 {[%clk 0:00:06.2]} 39. Kg1 {[%clk 0:00:16.3]} 39... Rb1 {[%clk
0:00:05.2]} 40. Kf2 {[%clk 0:00:15.9]} 40... Rxc1 {[%clk 0:00:05.5]} 41. Bxc1
{[%clk 0:00:16.7]} 41... Nc5 {[%clk 0:00:06]} 42. Ra3 {[%clk 0:00:15.4]} 42...
Ne6 {[%clk 0:00:05.8]} 43. Ke2 {[%clk 0:00:13.8]} 43... Nd4+ {[%clk 0:00:06.3]}
44. Kd2 {[%clk 0:00:12.5]} 44... Rd7 {[%clk 0:00:06.7]} 45. Rd3 {[%clk
0:00:10.5]} 45... Nb3+ {[%clk 0:00:06]} 46. Kxc2 {[%clk 0:00:10.6]} 46... Rxd3
{[%clk 0:00:05.9]} 47. Ba3+ {[%clk 0:00:10.9]} 47... Kf7 {[%clk 0:00:06.2]} 48.
Kxd3 {[%clk 0:00:10.7]} 48... Nd4 {[%clk 0:00:06.4]} 49. Bb2 {[%clk 0:00:10.2]}
49... Ne6 {[%clk 0:00:06.6]} 50. g3 {[%clk 0:00:10.7]} 50... h5 {[%clk
0:00:06.6]} 51. Ke3 {[%clk 0:00:11.1]} 51... Ke7 {[%clk 0:00:07.1]} 52. f4
{[%clk 0:00:11]} 52... Kd6 {[%clk 0:00:07.4]} 53. fxe5+ {[%clk 0:00:10.7]} 53...
fxe5 {[%clk 0:00:07.6]} 54. Bc3 {[%clk 0:00:11.6]} 54... Nc5 {[%clk 0:00:06.9]}
55. Bb4 {[%clk 0:00:11.3]} 55... Kc6 {[%clk 0:00:07]} 56. Bc3 {[%clk 0:00:11.2]}
56... Nd7 {[%clk 0:00:07.1]} 57. Kd3 {[%clk 0:00:10.7]} 57... Kc5 {[%clk
0:00:07.1]} 58. Bb2 {[%clk 0:00:10.5]} 58... Kb4 {[%clk 0:00:07.4]} 59. Bc1
{[%clk 0:00:08.7]} 59... Nc5+ {[%clk 0:00:07]} 60. Ke3 {[%clk 0:00:08.9]} 60...
Kc3 {[%clk 0:00:07.3]} 61. Bd2+ {[%clk 0:00:08.9]} 61... Kc4 {[%clk 0:00:07.6]}
62. Ba5 {[%clk 0:00:08.4]} 62... Ne6 {[%clk 0:00:07.7]} 63. Bb6 {[%clk
0:00:07.9]} 63... Nc5 {[%clk 0:00:06.7]} 64. Bc7 {[%clk 0:00:07.3]} 64... Nd7
{[%clk 0:00:07]} 65. Bd6 {[%clk 0:00:07.5]} 65... g6 {[%clk 0:00:07.3]} 66. Bc7
{[%clk 0:00:07.6]} 66... Kc3 {[%clk 0:00:07.6]} 67. Bd6 {[%clk 0:00:07.8]} 67...
Kc2 {[%clk 0:00:07.8]} 68. Bc7 {[%clk 0:00:06.4]} 68... Kd1 {[%clk 0:00:08.1]}
69. Ba5 {[%clk 0:00:05.7]} 69... Kc2 {[%clk 0:00:08]} 70. Bc7 {[%clk 0:00:05.7]}
70... Kc3 {[%clk 0:00:08.3]} 71. Bd6 {[%clk 0:00:06]} 71... Kc4 {[%clk
0:00:08.2]} 72. Bc7 {[%clk 0:00:06.5]} 72... Kb5 {[%clk 0:00:08.2]} 73. Bd6
{[%clk 0:00:06.3]} 73... Kc6 {[%clk 0:00:08.1]} 74. Be7 {[%clk 0:00:06.8]} 74...
Nc5 {[%clk 0:00:07.8]} 75. Bf6 {[%clk 0:00:06.4]} 75... Kd6 {[%clk 0:00:07]} 76.
Bg7 {[%clk 0:00:06.3]} 76... Nd7 {[%clk 0:00:07]} 77. Bh6 {[%clk 0:00:06]} 77...
Nb8 {[%clk 0:00:04.3]} 78. Kf3 {[%clk 0:00:05.4]} 78... Nc6 {[%clk 0:00:03.9]}
79. g4 {[%clk 0:00:05.7]} 79... Kc5 {[%clk 0:00:03.8]} 80. gxh5 {[%clk
0:00:05.2]} 80... gxh5 {[%clk 0:00:04.2]} 81. Ke3 {[%clk 0:00:05.9]} 81... Kc4
{[%clk 0:00:03.4]} 82. Bg7 {[%clk 0:00:06]} 82... Kc3 {[%clk 0:00:03.9]} 83. Bf6
{[%clk 0:00:05.8]} 83... Kc2 {[%clk 0:00:04.4]} 84. Bg7 {[%clk 0:00:05.9]} 84...
Kc3 {[%clk 0:00:04.4]} 85. Bf6 {[%clk 0:00:05.9]} 85... Kc2 {[%clk 0:00:04.8]}
86. Bg7 {[%clk 0:00:05.9]} 86... Kd1 {[%clk 0:00:05.1]} 87. Kd3 {[%clk
0:00:05.5]} 87... Ke1 {[%clk 0:00:05.5]} 88. Kc4 {[%clk 0:00:05.8]} 88... Kf2
{[%clk 0:00:05.5]} 89. Kd5 {[%clk 0:00:05.9]} 89... Nb4+ {[%clk 0:00:04.7]} 90.
Kxe5 {[%clk 0:00:05.8]} 90... Kf3 {[%clk 0:00:05.2]} 91. Kf5 {[%clk 0:00:05.4]}
91... Nc6 {[%clk 0:00:05.5]} 92. e5 {[%clk 0:00:05.2]} 92... Nd4+ {[%clk
0:00:06.1]} 93. Kg6 {[%clk 0:00:04.8]} 93... Kg4 {[%clk 0:00:05.9]} 94. Bf6
{[%clk 0:00:04.8]} 94... Ne6 {[%clk 0:00:06.3]} 95. Kf7 {[%clk 0:00:04.2]} 95...
Kf5 {[%clk 0:00:06.1]} 96. Ke7 {[%clk 0:00:03.3]} 96... Nf4 {[%clk 0:00:06.1]}
97. Kf7 {[%clk 0:00:03.5]} 97... Ne6 {[%clk 0:00:06.3]} 98. Ke7 {[%clk
0:00:03.7]} 98... Nf4 {[%clk 0:00:06.6]} 99. Kf8 {[%clk 0:00:04]} 99... Ng6+
{[%clk 0:00:06.4]} 100. Kf7 {[%clk 0:00:04.6]} 100... Nxe5+ {[%clk 0:00:07.3]}
101. Bxe5 {[%clk 0:00:04.9]} 101... Kxe5 {[%clk 0:00:08.1]} 102. Kg6 {[%clk
0:00:05.5]} 102... Ke6 {[%clk 0:00:09]} 103. Kxh5 {[%clk 0:00:05.9]} 103... Kf7
{[%clk 0:00:09.9]} 104. Kg5 {[%clk 0:00:06.6]} 104... Kg8 {[%clk 0:00:10.8]}
105. h5 {[%clk 0:00:07.4]} 105... Kh8 {[%clk 0:00:11.7]} 106. h6 {[%clk
0:00:08.3]} 106... Kg8 {[%clk 0:00:12.6]} 107. Kg6 {[%clk 0:00:08.8]} 107... Kh8
{[%clk 0:00:13.5]} 108. h7 {[%clk 0:00:09.5]} 1/2-1/2

[Event "Late-Titled-Tuesday-Blitz-January-30-2024"]
[Site "Chess.com"]
[Date "2024.01.30"]
[Round "11"]
[White "manitodeplomo"]
[Black "Defend1r"]
[Result "1-0"]
[WhiteElo "2701"]
[BlackElo "2550"]
[TimeControl "180+1"]
[EndTime "16:01:00 PST"]
[Termination "manitodeplomo won by resignation"]

1. d4 {[%clk 0:03:00.9]} 1... Nf6 {[%clk 0:02:59.5]} 2. c4 {[%clk 0:03:01.2]}
2... e6 {[%clk 0:02:59.7]} 3. Nf3 {[%clk 0:03:00.8]} 3... d5 {[%clk 0:02:58.6]}
4. Nc3 {[%clk 0:03:00.7]} 4... Be7 {[%clk 0:02:58.7]} 5. Bg5 {[%clk 0:03:00]}
5... h6 {[%clk 0:02:55.2]} 6. Bxf6 {[%clk 0:02:59.5]} 6... Bxf6 {[%clk
0:02:55.3]} 7. Qc2 {[%clk 0:02:59.2]} 7... O-O {[%clk 0:02:49.9]} 8. O-O-O
{[%clk 0:02:58]} 8... b6 {[%clk 0:02:07.9]} 9. e4 {[%clk 0:02:53.4]} 9... dxe4
{[%clk 0:02:05.4]} 10. Qxe4 {[%clk 0:02:54.3]} 10... c6 {[%clk 0:02:05.9]} 11.
h4 {[%clk 0:02:54.3]} 11... Bb7 {[%clk 0:02:05.4]} 12. Bd3 {[%clk 0:02:53.5]}
12... g6 {[%clk 0:02:01.4]} 13. h5 {[%clk 0:02:53.1]} 13... Bg5+ {[%clk
0:02:01]} 14. Nxg5 {[%clk 0:02:52.5]} 14... Qxg5+ {[%clk 0:02:00.8]} 15. f4
{[%clk 0:02:53]} 15... Qf5 {[%clk 0:01:58.9]} 16. Qe3 {[%clk 0:02:52.6]} 16...
Qg4 {[%clk 0:01:53.8]} 17. hxg6 {[%clk 0:02:51.3]} 17... fxg6 {[%clk 0:01:54.7]}
18. Rxh6 {[%clk 0:02:50.7]} 18... Rf6 {[%clk 0:01:50.6]} 19. Rdh1 {[%clk
0:02:47.9]} 19... Qxf4 {[%clk 0:01:40.9]} 20. Rh8+ {[%clk 0:02:33.6]} 1-0

[Event "Late-Titled-Tuesday-Blitz-January-30-2024"]
[Site "Chess.com"]
[Date "2024.01.30"]
[Round "11"]
[White "blitis"]
[Black "Mikhail_Bryakin"]
[Result "1-0"]
[WhiteElo "2648"]
[BlackElo "2796"]
[TimeControl "180+1"]
[EndTime "16:02:11 PST"]
[Termination "blitis won by resignation"]

1. e4 {[%clk 0:02:52.1]} 1... Nf6 {[%clk 0:02:59]} 2. e5 {[%clk 0:02:51.5]} 2...
Nd5 {[%clk 0:02:59.7]} 3. d4 {[%clk 0:02:50.9]} 3... d6 {[%clk 0:03:00]} 4. Nf3
{[%clk 0:02:51.8]} 4... dxe5 {[%clk 0:02:59.3]} 5. Nxe5 {[%clk 0:02:51.7]} 5...
c6 {[%clk 0:02:58.2]} 6. c4 {[%clk 0:02:50.7]} 6... Nf6 {[%clk 0:02:58.4]} 7.
Nc3 {[%clk 0:02:50]} 7... Nbd7 {[%clk 0:02:58.3]} 8. f4 {[%clk 0:02:49.6]} 8...
g6 {[%clk 0:02:57.9]} 9. Be2 {[%clk 0:02:46]} 9... Bg7 {[%clk 0:02:55.6]} 10. h4
{[%clk 0:02:46.2]} 10... h5 {[%clk 0:02:53.9]} 11. Be3 {[%clk 0:02:38.8]} 11...
O-O {[%clk 0:02:53.8]} 12. O-O {[%clk 0:02:26.1]} 12... Nxe5 {[%clk 0:02:53.7]}
13. fxe5 {[%clk 0:02:25.9]} 13... Ng4 {[%clk 0:02:53.9]} 14. Bf4 {[%clk
0:02:22]} 14... Bf5 {[%clk 0:02:52.6]} 15. Bxg4 {[%clk 0:02:17]} 15... Bxg4
{[%clk 0:02:52.1]} 16. Qd2 {[%clk 0:02:17.5]} 16... Qb6 {[%clk 0:02:50.7]} 17.
Kh1 {[%clk 0:02:08.8]} 17... Rad8 {[%clk 0:02:50.8]} 18. c5 {[%clk 0:02:06.6]}
18... Qa6 {[%clk 0:02:49.8]} 19. Ne4 {[%clk 0:02:00.4]} 19... Qc4 {[%clk
0:02:49]} 20. Rad1 {[%clk 0:01:35.7]} 20... Bxd1 {[%clk 0:02:46.1]} 21. Rxd1
{[%clk 0:01:36.6]} 21... Qxa2 {[%clk 0:02:43.7]} 22. Bg5 {[%clk 0:01:32.6]}
22... f6 {[%clk 0:02:43.8]} 23. exf6 {[%clk 0:01:29.4]} 23... exf6 {[%clk
0:02:44.7]} 24. Bf4 {[%clk 0:01:27.1]} 24... Qd5 {[%clk 0:02:42.7]} 25. Nd6
{[%clk 0:01:24.3]} 25... g5 {[%clk 0:02:40.7]} 26. hxg5 {[%clk 0:01:23.1]} 26...
fxg5 {[%clk 0:02:41.6]} 27. Bxg5 {[%clk 0:01:23.6]} 27... Rd7 {[%clk 0:02:42]}
28. Re1 {[%clk 0:01:20]} 28... Qxd4 {[%clk 0:02:40.6]} 29. Qc2 {[%clk
0:01:13.5]} 29... Qf2 {[%clk 0:02:32.3]} 30. Re2 {[%clk 0:01:08.2]} 30... Qf1+
{[%clk 0:02:29.9]} 31. Kh2 {[%clk 0:01:08.6]} 31... Qf5 {[%clk 0:02:30.3]} 32.
Nxf5 {[%clk 0:01:07.1]} 32... Rxf5 {[%clk 0:02:31.2]} 33. Qxf5 {[%clk
0:01:06.4]} 1-0